[Event "ChessKid Cup Div-III 2023"]
[Site "Online"]
[Date "2023.05.22"]
[Round "51.1"]
[White "Sasikiran, Krishnan"]
[Black "Terry, Renato"]
[Result "1/2-1/2"]
[ECO "C11"]
[WhiteElo "2604"]
[BlackElo "2520"]
[Annotator "TA"]
[PlyCount "122"]
[EventDate "2023.05.21"]
[EventType "k.o."]
[EventCountry "NET"]
[SourceTitle "playchess.com"]
[Source "ChessBase"]
[SourceQuality "1"]
[TimeControl "900+3"]

{[%evp 15,122,11,4,1,3,11,0,4,8,1,12,18,0,0,0,0,2,7,11,0,5,6,20,0,0,0,33,30,40,22,16,24,31,49,53,46,66,68,72,72,65,53,67,0,0,0,0,0,0,0,10,0,22,0,0,0,0,0,0,0,0,0,0,0,0,0,0,0,0,0,0,0,0,0,0,0,0,0,0,0,0,0,0,0,0,0,0,0,0,0,0,0,0,0,0,0,0,0,0,-6,-6,-6,-6,-6,0,0,0,0,0]} 1. d4 {[%emt 0:00:08]} e6 {[%emt 0:00:11]} 2. e4 {[%emt 0:00:04]} d5 {[%emt 0:00:02]} 3. Nc3 {[%emt 0:00:01]} Nf6 {[%emt 0:00:01]} 4. e5 {[%emt 0:00:02]} Nfd7 {[%emt 0:00:01]} 5. f4 {[%emt 0:00:01]} c5 {[%emt 0:00:00]} 6. Nf3 {[%emt 0:00:00]} Nc6 {[%emt 0:00:01]} 7. Be3 {[%emt 0:00:00]} Be7 {[%emt 0:00:00]} 8. Qd2 {[%emt 0:00:06]} O-O {[%emt 0:00:01] 8...a6 is the fancy move.} 9. Bd3 {[%emt 0:00:06] C11: French: Classical System: 4 e5 and 4 Bg5 dxe4.} f6 {[%emt 0:00:04]} 10. exf6 {[%emt 0:01:34]} Bxf6 {[%emt 0:00:02][%cal Rc5d4]} 11. Bb5 {[%emt 0:00:07][%cal Bd3b5,Bb5a4,Ba4b3][%mdl 32]} ({Much weaker is} 11. dxc5 d4 12. Nxd4 Nxd4 13. Bxd4 Bxd4 14. Bxh7+ Kxh7 $17) 11... cxd4 {[%emt 0:00:05]} 12. Nxd4 {[%emt 0:00:02]} Bxd4 {[%emt 0:02:39]} 13. Bxd4 {[%emt 0:00:03]} a6 {[%emt 0:00:01] [#]} (13... e5 14. Bxe5 Ndxe5 15. fxe5 d4 16. Ne2 Qd5 17. Ba4 Qxg2 18. O-O-O Bg4 19. Nxd4 Qxd2+ 20. Rxd2 Nxe5 {½-½ Sasikiran,K (2650)-Terry,R (2504) Titled Tuesday intern op 01st Feb-A blitz 2022 (11)}) 14. Ba4 $146 {[%emt 0:03:54]} ({Predecessor:} 14. Be2 e5 15. Bxe5 Ndxe5 16. fxe5 d4 17. Ne4 Qh4+ 18. Ng3 Be6 19. O-O-O Rf2 20. a3 Rxg2 {0-1 Abdulov,O (2372)-Bajarani,U (2470) Baku Zirva Cup 2019 (2.4)}) 14... Nxd4 {[%emt 0:02:07]} (14... b5 $5 15. Bb3 $8 Nxd4 16. Qxd4 Qf6 17. Qxf6 Nxf6 $11) 15. Qxd4 {[%emt 0:00:02]} Qf6 {[%emt 0:00:34]} 16. Qxf6 {[%emt 0:01:02]} Rxf6 {[%emt 0:00:13]} 17. g3 {[%emt 0:00:54]} b5 {[%emt 0:03:52]} 18. Bb3 {[%emt 0:00:03][%cal Oc3d5]} Bb7 {[%emt 0:00:01] [#] And now ...d4 would win.} 19. O-O-O {[%emt 0:03:28]} Nc5 {[%emt 0:01:44][%cal Od5d4] Repels Ne4. Threatens to win with ...d4!} 20. Ne2 {[%emt 0:01:20]} Re8 {[%emt 0:00:12]} 21. Rhe1 {[%emt 0:00:15]} Rh6 {[%emt 0:03:12]} 22. h4 {[%emt 0:00:08]} Rg6 {[%emt 0:00:01]} 23. c3 {[%emt 0:00:35]} Nxb3+ {[%emt 0:00:01]} 24. axb3 {[%emt 0:00:03]} e5 {[%emt 0:00:37]} 25. fxe5 {[%emt 0:01:09]} Rge6 {[%emt 0:00:04]} 26. Nd4 {[%emt 0:00:18]} Rxe5 {[%emt 0:00:01]} 27. Rxe5 {[%emt 0:00:01]} Rxe5 $14 {[%emt 0:00:00][%mdl 4096] Endgame KRB-KRN} 28. Kd2 {[%emt 0:00:01]} Bc8 {[%emt 0:00:32]} 29. Re1 {[%emt 0:00:06]} (29. Rf1 $14) 29... Rxe1 $11 {[%emt 0:00:06] The position is equal.} 30. Kxe1 {[%emt 0:00:00] KB-KN} Kf7 {[%emt 0:00:00]} 31. Kf2 {[%emt 0:00:05]} Kf6 {[%emt 0:00:01]} 32. Ke3 {[%emt 0:00:04]} Bd7 {[%emt 0:00:08]} 33. b4 {[%emt 0:00:01]} Ke5 {[%emt 0:00:01]} 34. Nb3 {[%emt 0:00:09]} Kf5 {[%emt 0:00:01]} 35. Nc5 {[%emt 0:00:03]} Bc8 {[%emt 0:00:01]} 36. Kf3 {[%emt 0:00:02]} h5 {[%emt 0:00:08]} 37. Nb3 {[%emt 0:00:06]} Ke5 {[%emt 0:00:02]} 38. Nd4 {[%emt 0:00:07]} Bd7 {[%emt 0:00:01]} 39. Ke3 {[%emt 0:00:05]} Bc8 {[%emt 0:00:04]} 40. Ne2 {[%emt 0:00:07]} Kf5 {[%emt 0:00:04]} 41. Nf4 {[%emt 0:00:21]} Kg4 {[%emt 0:00:01]} 42. Kf2 {[%emt 0:00:04]} Bb7 {[%emt 0:00:06]} 43. Ne6 {[%emt 0:00:07]} g6 {[%emt 0:00:02]} 44. Nc5 {[%emt 0:00:03]} Bc8 {[%emt 0:00:02]} 45. Nd3 {[%emt 0:00:02]} Kf5 {[%emt 0:00:07]} 46. Nc5 {[%emt 0:00:06]} Kg4 {[%emt 0:00:01]} 47. Nb3 {[%emt 0:00:01]} Kf5 {[%emt 0:00:03]} 48. Nd2 {[%emt 0:00:09]} Kg4 {[%emt 0:00:03]} 49. Nf1 {[%emt 0:00:03] [#] aiming for Ne3+.} Kf5 {[%emt 0:00:01]} 50. Kf3 {[%emt 0:00:04]} Bb7 {[%emt 0:00:02]} 51. Ke3 {[%emt 0:00:03]} Kg4 {[%emt 0:00:02]} 52. Kf2 {[%emt 0:00:01]} Kf5 {[%emt 0:00:01]} 53. Nd2 {[%emt 0:00:03]} Kg4 {[%emt 0:00:04]} 54. Nf3 {[%emt 0:00:02]} Kf5 {[%emt 0:00:02]} 55. Nd4+ {[%emt 0:00:04]} Ke4 {[%emt 0:00:04]} 56. Ke2 {[%emt 0:00:01]} Bc8 {[%emt 0:00:01]} 57. Kd2 {[%emt 0:00:00]} Bd7 {[%emt 0:00:02]} 58. Ke2 {[%emt 0:00:02]} Bg4+ {[%emt 0:00:01]} 59. Kd2 {[%emt 0:00:01]} Bd7 {[%emt 0:00:00]} 60. Ke2 {[%emt 0:00:01]} Bg4+ {[%emt 0:00:03]} 61. Kd2 {[%emt 0:00:01]} Bd7 {[%emt 0:00:01] Weighted Error Value: White=0.04 (flawless) /Black=0.04 (flawless)} 1/2-1/2

[Event "ChessKid Cup Div-III 2023"]
[Site "Online"]
[Date "2023.05.22"]
[Round "51.1"]
[White "Paravyan, David"]
[Black "Bluebaum, Matthias"]
[Result "0-1"]
[ECO "C06"]
[WhiteElo "2601"]
[BlackElo "2669"]
[Annotator "TA"]
[PlyCount "50"]
[EventDate "2023.05.21"]
[EventType "k.o."]
[EventCountry "NET"]
[SourceTitle "playchess.com"]
[Source "ChessBase"]
[SourceQuality "1"]
[TimeControl "900+3"]

{[%evp 24,50,9,0,7,-216,-212,-209,-218,-202,-216,-534,-531,-524,-522,-708,-100,-103,-96,-521,-522,-505,-384,-3369,-1957,-4210,-3882,-29987,-29988]} 1. e4 {[%emt 0:00:07][%cal Be2e4,Be4e5][%mdl 32]} e6 {[%emt 0:00:05]} 2. d4 {[%emt 0:00:02]} d5 {[%emt 0:00:00]} 3. Nd2 {[%emt 0:00:03]} c5 {[%emt 0:00:03]} 4. Ngf3 {[%emt 0:00:02]} Nf6 {[%emt 0:00:00]} 5. e5 {[%emt 0:00:04]} Nfd7 {[%emt 0:00:01]} 6. c3 {[%emt 0:00:00]} Nc6 {[%emt 0:00:01]} 7. Bd3 {[%emt 0:00:02]} f6 {[%emt 0:00:01]} 8. exf6 {[%emt 0:03:09]} Nxf6 {[%emt 0:00:00][%cal Bd7f6,Bf6g4,Bg4f2][%mdl 32]} 9. O-O {[%emt 0:00:27]} cxd4 {[%emt 0:00:01]} 10. cxd4 {[%emt 0:00:09]} Bd6 {[%emt 0:00:00]} 11. Re1 {[%emt 0:01:13]} O-O {[%emt 0:00:02]} 12. Nf1 {[%emt 0:00:01]} Qb6 {[%emt 0:00:02]} 13. Ng3 {[%emt 0:01:09]} Ng4 $5 {[%emt 0:02:33][%mdl 4] [#] ...Bxg3 is the strong threat. Exploring less charted territory. C06: French Tarrasch: 3...Nf6 4 e5 Nfd7 5 Bd3 main lines.} 14. h3 $146 {[%emt 0:03:27] [#]} (14. Bxh7+ $11 Kxh7 15. Ng5+ Kg8 16. Qxg4 Qxd4 17. Qe2) ({Predecessor:} 14. Be3 Nxe3 15. Rxe3 g6 16. Ng5 Qxd4 17. Qe2 Ne5 18. Rd1 Qf4 19. Nh3 Qf6 20. Bb1 Bd7 21. Ne4 dxe4 22. Rxd6 {0-1 Veljanoski,A (2074)-Mihov,F (2178) FRM-ch op Struga 2021 (8)}) 14... Nxf2 $1 $19 {[%emt 0:01:06][%mdl 512]} 15. Kxf2 {[%emt 0:02:32]} Nxd4 {[%emt 0:00:11] Black is clearly better.} 16. Re3 {[%emt 0:01:24]} e5 {[%emt 0:02:02] And now ...Be6 would win.} 17. Ke1 $2 {[%emt 0:00:37]} (17. a4 Nxf3 18. gxf3) 17... e4 {[%emt 0:01:23]} 18. Nxe4 {[%emt 0:00:37]} dxe4 {[%emt 0:00:18]} 19. Bc4+ {[%emt 0:00:38]} Kh8 $2 {[%emt 0:00:34]} (19... Be6 $19 {has better winning chances.} 20. Bxe6+ {[%mdl 64] Remove Defender} Nxe6) 20. Qxd4 $17 {[%emt 0:00:02]} (20. Nxd4 $2 {is the wrong capture.} Bb4+ 21. Rc3 Bd7 $19) 20... Bg3+ {[%emt 0:00:34]} 21. Kd2 $2 {[%emt 0:00:10][%mdl 8192]} (21. Ke2 $17 {nothing else works.} exf3+ 22. Rxf3) 21... Rd8 $19 {[%emt 0:00:08][%mdl 64] Pin} ({Worse is} 21... exf3 22. Qxb6 axb6 23. Rxf3 Rxf3 24. gxf3 $17) 22. Bd5 {[%emt 0:00:08]} exf3 {[%emt 0:00:05]} 23. Qd3 {[%emt 0:00:06]} (23. Qxb6 axb6 24. Kc3) 23... Bf4 {[%emt 0:00:06][%mdl 64] White must now prevent ...fxg2. Pin} 24. Kc2 {[%emt 0:00:03]} Qc5+ {[%emt 0:00:17]} 25. Bc4 {[%emt 0:00:02]} Bf5 {[%emt 0:00:01][%mdl 64] Pin.   Weighted Error Value: White=2.00/Black=1.06} ({Don't play} 25... Rxd3 26. Re8+ {[%mdl 64] Discovered Attack}) 0-1

[Event "ChessKid Cup Div-III 2023"]
[Site "Online"]
[Date "2023.05.22"]
[Round "51.1"]
[White "Iniyan, P."]
[Black "Raja Harshit"]
[Result "1/2-1/2"]
[ECO "E49"]
[WhiteElo "2525"]
[BlackElo "2515"]
[Annotator "TA"]
[PlyCount "113"]
[EventDate "2023.05.21"]
[EventType "k.o."]
[EventCountry "NET"]
[SourceTitle "playchess.com"]
[Source "ChessBase"]
[SourceQuality "1"]
[TimeControl "900+3"]

{[%evp 26,113,17,35,21,22,21,20,28,0,10,0,0,2,26,10,58,29,23,0,0,0,0,-16,-16,-53,-53,-53,-53,-53,-53,-90,0,-101,0,-95,-95,-95,-72,-121,-121,-121,-75,-75,-75,-75,-44,-50,-22,-33,-22,-22,-22,-22,-22,-22,-22,-22,-22,-22,-22,-22,-22,-22,-22,-22,-22,-22,0,-22,-18,-18,0,-18,-18,-22,-22,-22,-18,-18,-18,-18,-18,-18,0,-18,0,-18,0,-18]} 1. d4 {[%emt 0:00:11]} Nf6 {[%emt 0:00:15]} 2. c4 {[%emt 0:00:02]} e6 {[%emt 0:00:02]} 3. Nc3 {[%emt 0:00:02]} Bb4 {[%emt 0:00:03]} 4. e3 {[%emt 0:00:01]} d5 {[%emt 0:00:03]} 5. a3 {[%emt 0:00:12]} Bxc3+ {[%emt 0:00:27]} 6. bxc3 {[%emt 0:00:00]} O-O {[%emt 0:00:02]} 7. cxd5 {[%emt 0:00:01]} exd5 {[%emt 0:00:02]} 8. Bd3 {[%emt 0:00:02]} c5 {[%emt 0:00:07]} 9. Ne2 {[%emt 0:00:02][%cal Bg1e2,Be2g3,Bg3f5][%mdl 32]} b6 {[%emt 0:00:02]} 10. O-O {[%emt 0:00:01]} Ba6 {[%emt 0:00:02]} 11. f3 {[%emt 0:00:18]} Bxd3 {[%emt 0:00:08]} 12. Qxd3 {[%emt 0:00:00]} Re8 {[%emt 0:00:00]} 13. Ng3 {[%emt 0:00:16]} Nc6 {[%emt 0:00:19]} 14. Bb2 {[%emt 0:00:01]} h5 {[%emt 0:00:02] 14...c4 is vanishing. E49: Nimzo-Indian: Rubinstein: 5 Bd3 d5 6 a3 Bxc3+ 7 bxc3.} 15. Rae1 {[%emt 0:00:02]} h4 {[%emt 0:01:26]} 16. Nf5 {[%emt 0:00:12]} h3 {[%emt 0:00:01]} 17. gxh3 {[%emt 0:00:25]} (17. e4 {is more complex.} hxg2 18. Rf2 Ne7 19. e5) 17... Ne7 {[%emt 0:00:33]} 18. Ng3 {[%emt 0:00:11]} (18. dxc5 $5 {[%cal Rf5d6]} bxc5 19. Nxe7+ Qxe7 20. c4 $11) 18... Qd7 {[%emt 0:00:36]} 19. dxc5 {[%emt 0:00:09] [#]} b5 $146 {[%emt 0:01:51]} ({Predecessor:} 19... Qxh3 20. c4 dxc4 21. Qxc4 Ned5 22. cxb6 axb6 23. Qc1 Re6 24. Qd2 Qh6 25. f4 b5 {1-0 Xu,X (2587)-Vignesh,N (2497) La Roda op 49th 2023 (5)}) 20. a4 {[%emt 0:00:20]} a6 {[%emt 0:00:13]} (20... Rac8 $11 {might be stronger.}) 21. axb5 {[%emt 0:00:37]} axb5 {[%emt 0:00:00]} 22. e4 {[%emt 0:00:44]} Qxh3 {[%emt 0:01:42]} 23. exd5 {[%emt 0:00:58]} (23. Qxb5 Reb8 24. Qe2 Ra2 $15) 23... Nexd5 {[%emt 0:00:20]} (23... Ra2 $2 24. Qb1 Raa8 25. d6 $18) 24. c4 {[%emt 0:00:15]} (24. Qxb5 $2 {perishes.} Nf4 25. Rxe8+ Rxe8 $19) 24... bxc4 $40 {[%emt 0:01:04][%mdl 128] White needs to defend precisely.} 25. Qxc4 {[%emt 0:00:24]} Ne3 {[%emt 0:00:16]} 26. Rxe3 $1 {[%emt 0:00:01]} Rxe3 {[%emt 0:00:00]} 27. Bxf6 $1 {[%emt 0:00:01]} gxf6 {[%emt 0:00:07]} 28. c6 {[%emt 0:00:02]} Qe6 {[%emt 0:00:29]} (28... Raa3 $17 {[%cal Oe3c3] ...Rec3! is the strong threat.} 29. Qg4+ Qxg4 30. fxg4 Rec3) 29. Qc1 {[%emt 0:02:25] Prevents Rc3} (29. Qf4 $11 Qe5 30. Qg4+ Qg5 31. Qd7 (31. Nf5 $2 Rc3 $19)) 29... Rea3 {[%emt 0:02:36]} (29... Qe5 $1 $17 {aiming for ...Rc3.} 30. Qd2 Rea3) 30. Ne4 {[%emt 0:01:28] [#]} (30. c7 $11 {remains equal.}) 30... f5 $1 $17 {[%emt 0:00:32]} 31. Ng3 {[%emt 0:01:17]} Ra1 {[%emt 0:02:13][%mdl 64] Deflection} 32. Qf4 {[%emt 0:01:43]} ({White should play} 32. Qg5+ Qg6 33. f4 (33. Qxg6+ $2 fxg6 34. h4 Kf7 $19)) 32... Qxc6 {[%emt 0:00:34]} 33. Nxf5 {[%emt 0:00:32]} Qb6+ {[%emt 0:00:16]} (33... Qg6+ $142 34. Qg4 Kh7 35. Rxa1 Rxa1+ 36. Kf2 Qb6+ 37. Qd4 Qxd4+ 38. Nxd4 Kg6) 34. Kg2 {[%emt 0:00:08] [#]} Qg6+ {[%emt 0:00:11]} ({Reject} 34... R8a2+ 35. Kh3 Qf6 36. Rxa1 Rxa1 37. Qg4+ Kh8 38. Qh5+ Kg8 39. Qg4+ Kh8 40. Qh5+ Kg8 41. Qg4+ $11) 35. Qg4 {[%emt 0:00:51]} R8a2+ {[%emt 0:00:06]} 36. Rf2 $1 {[%emt 0:00:03] Threatens to win with Ne7+.} Qxg4+ {[%emt 0:00:02]} (36... Kf8 {feels hotter.} 37. Rxa2 Rxa2+ 38. Kg3 Ra1) 37. fxg4 {[%emt 0:00:01]} Rxf2+ {[%emt 0:00:05]} 38. Kxf2 $15 {[%emt 0:00:00][%mdl 4096] Endgame KR-KN. The position is equal.} Ra3 {[%emt 0:00:03]} 39. h4 {[%emt 0:00:06]} Kh7 {[%emt 0:00:01]} 40. h5 {[%emt 0:00:03]} f6 {[%emt 0:00:02]} 41. Kg2 {[%emt 0:00:06]} Kg8 {[%emt 0:00:03]} 42. Nh4 {[%emt 0:00:15]} Kg7 {[%emt 0:00:03]} 43. Nf3 {[%emt 0:00:06]} Kh6 {[%emt 0:00:06]} 44. Kg3 {[%emt 0:00:01]} Ra4 {[%emt 0:00:02]} 45. Nh4 {[%emt 0:00:04]} Rb4 {[%emt 0:00:06]} 46. Nf3 {[%emt 0:00:01]} Ra4 {[%emt 0:00:02]} (46... f5 $5 47. gxf5 Kxh5 $15) 47. Nh4 {[%emt 0:00:02]} Ra5 {[%emt 0:00:02]} 48. Kf4 {[%emt 0:00:10]} Ra4+ {[%emt 0:00:03]} 49. Kf5 {[%emt 0:00:02]} Rb4 {[%emt 0:00:04]} 50. Ng2 {[%emt 0:00:21]} Rb2 {[%emt 0:00:03]} 51. Nf4 {[%emt 0:00:09]} Rf2 {[%emt 0:00:01] Strongly threatening ...Rf1.} 52. Ke4 $1 {[%emt 0:00:01]} Rf1 {[%emt 0:00:03] ...Kg5 would be deadly.} 53. Ne6 {[%emt 0:00:06]} Re1+ {[%emt 0:00:06]} 54. Kf5 {[%emt 0:00:02]} Rf1+ {[%emt 0:00:02]} 55. Ke4 {[%emt 0:00:01]} Rf2 {[%emt 0:00:03]} 56. Ke3 {[%emt 0:00:07]} Rf1 {[%emt 0:00:02] ( -> ...Re1+)} 57. Ke4 {[%emt 0:00:02] Weighted Error Value: White=0.14 (very precise) /Black=0.16 (very precise)} 1/2-1/2

[Event "ChessKid Cup Div-III 2023"]
[Site "Online"]
[Date "2023.05.22"]
[Round "51.1"]
[White "Tang, Andrew"]
[Black "Santos Ruiz, Miguel"]
[Result "0-1"]
[ECO "D02"]
[WhiteElo "2523"]
[BlackElo "2590"]
[Annotator "TA"]
[PlyCount "82"]
[EventDate "2023.05.21"]
[EventType "k.o."]
[EventCountry "NET"]
[SourceTitle "playchess.com"]
[Source "ChessBase"]
[SourceQuality "1"]
[TimeControl "900+3"]

{[%evp 9,82,4,21,18,11,7,11,14,9,9,23,9,0,11,10,-43,-35,-34,-37,-112,-101,-101,-97,-70,-14,-95,-78,-82,-13,-76,-63,-81,-83,-65,-87,-88,-43,-48,-27,-19,-22,-25,-39,-27,-31,-32,0,-7,-7,-55,-39,-76,-82,-98,-97,-104,-88,-82,-89,-99,-85,-102,-103,-100,-83,-97,-55,-125,-46,-1014,-1012,-29976,-29977,-12834,-1177]} 1. d4 {[%emt 0:00:03]} Nf6 {[%emt 0:00:05]} 2. Nf3 {[%emt 0:00:02]} d5 {[%emt 0:00:01]} 3. Bf4 {[%emt 0:00:01]} e6 {[%emt 0:00:10]} 4. e3 {[%emt 0:00:01]} c5 {[%emt 0:00:00]} 5. Nbd2 {[%emt 0:00:01]} Qb6 {[%emt 0:00:01]} 6. Rb1 {[%emt 0:00:05] D02: 1 d4 d5 2 Nf3 sidelines, including 2...Nf6 3 g3 and 2...Nf6 3 Bf4.} Bd7 {[%emt 0:00:14] 6...Bd6 is becoming the main line.} 7. c3 {[%emt 0:00:12]} Bb5 {[%emt 0:00:06]} 8. Bxb5+ {[%emt 0:00:46] The position is equal.} Qxb5 {[%emt 0:00:01] [#]} 9. a4 $146 {[%emt 0:00:01]} ({Predecessor:} 9. Qe2 Qxe2+ 10. Kxe2 Nc6 11. h3 Be7 12. Rhc1 a5 13. dxc5 Bxc5 14. b4 axb4 15. cxb4 Bxb4 16. Rxc6 Bxd2 17. Rxb7 {1-0 Le,K (2194)-Doan,T (1902) VIE-chB (Women) 2018 (7)}) 9... Qa6 {[%emt 0:00:02]} 10. dxc5 {[%emt 0:00:08]} Bxc5 {[%emt 0:00:06]} 11. b4 {[%emt 0:00:01]} Be7 {[%emt 0:00:01]} 12. b5 {[%emt 0:00:37]} ({White should play} 12. c4 $11) 12... Qa5 $15 {[%emt 0:00:03]} 13. O-O {[%emt 0:00:07]} O-O {[%emt 0:00:03]} 14. Qc2 {[%emt 0:06:09]} (14. c4 $15) 14... Nbd7 $17 {[%emt 0:00:05]} 15. Ra1 {[%emt 0:00:05]} Rfc8 {[%emt 0:00:09]} 16. Rfc1 {[%emt 0:00:04]} Nc5 {[%emt 0:00:25]} (16... a6 $15 17. bxa6 Qxa6) 17. h3 {[%emt 0:00:19]} (17. Be5 $11) 17... a6 {[%emt 0:00:11]} 18. c4 {[%emt 0:00:25]} Qd8 {[%emt 0:00:17]} (18... axb5 $17 19. cxb5 Nfd7) 19. Nd4 {[%emt 0:00:18]} (19. Rab1 $11 {remains equal.}) 19... Nce4 {[%emt 0:00:10]} 20. Nxe4 {[%emt 0:00:12]} Nxe4 {[%emt 0:00:02]} 21. Qe2 {[%emt 0:00:19]} Bf6 {[%emt 0:00:17]} 22. bxa6 {[%emt 0:00:54]} bxa6 {[%emt 0:00:05] And now ...e5 would win.} 23. Bh2 {[%emt 0:03:18]} dxc4 {[%emt 0:00:27]} 24. Rxc4 {[%emt 0:00:14]} Nc3 {[%emt 0:00:04]} 25. Qd3 {[%emt 0:00:10]} Rxc4 {[%emt 0:00:30]} 26. Qxc4 {[%emt 0:00:02]} Bxd4 {[%emt 0:00:41]} 27. exd4 {[%emt 0:00:00]} Qc8 {[%emt 0:00:02]} (27... Qxd4 $5 28. Qxd4 Ne2+ 29. Kf1 Nxd4 $15) 28. Qd3 {[%emt 0:00:25]} Qc6 {[%emt 0:00:04]} 29. a5 {[%emt 0:00:18]} (29. Bf4 $11 {feels stronger.} Nd5 30. Bd2) 29... Rd8 $36 {[%emt 0:00:13][%cal Od8d4][%mdl 2048] Black has some pressure.} 30. Be5 {[%emt 0:00:07] White is weak on the light squares} f6 {[%emt 0:00:08]} 31. Bg3 {[%emt 0:00:02] [#]} Rxd4 $1 {[%emt 0:00:01][%mdl 64] Decoy} 32. Qe3 {[%emt 0:00:04]} e5 {[%emt 0:00:07]} 33. Kh2 {[%emt 0:00:01]} Nd5 {[%emt 0:00:09] Black is much more active.} 34. Qb3 {[%emt 0:00:03]} h5 {[%emt 0:00:35] White must now prevent ...Rb4.} 35. f3 {[%emt 0:00:01]} Kh7 {[%emt 0:00:13]} 36. Qb1+ {[%emt 0:00:13]} Kh6 {[%emt 0:00:01]} 37. Bf2 {[%emt 0:00:04]} Rd2 {[%emt 0:00:06]} 38. Be1 {[%emt 0:00:01] [#]} (38. Ra2 $15 Rxa2 39. Qxa2) 38... Rc2 {[%emt 0:00:09]} ({Black should try} 38... Re2 $1 $17 39. Ra2 Qc4 40. Rxe2 Qxe2 41. Qc1+ Nf4) 39. Qd1 $2 {[%emt 0:00:19][%mdl 8192] [#]} (39. Ra2 $15 Rxa2 40. Qxa2) 39... Rxg2+ $3 $19 {[%emt 0:00:05][%mdl 576] Decoy} 40. Kh1 {[%emt 0:00:11]} (40. Kxg2 Ne3+) 40... Nf4 {[%emt 0:00:32]} 41. Bd2 {[%emt 0:00:05]} Rg3 {[%emt 0:00:07] A cool game by Santos Ruiz.   Weighted Error Value: White=0.49/Black=0.15 (very precise)} (41... Rf2 $142 42. Ra2 g5 43. Bxf4 Rxa2) 0-1

[Event "ChessKid Cup Div-III 2023"]
[Site "Online"]
[Date "2023.05.22"]
[Round "51.2"]
[White "Bluebaum, Matthias"]
[Black "Paravyan, David"]
[Result "1-0"]
[ECO "D85"]
[WhiteElo "2669"]
[BlackElo "2601"]
[Annotator "TA"]
[PlyCount "97"]
[EventDate "2023.05.21"]
[EventType "k.o."]
[EventCountry "NET"]
[SourceTitle "playchess.com"]
[Source "ChessBase"]
[SourceQuality "1"]
[TimeControl "900+3"]

{[%evp 21,97,12,12,9,13,6,11,0,0,0,0,0,0,0,0,0,0,0,0,0,0,0,0,0,0,0,0,0,0,0,0,0,0,0,18,0,0,0,0,8,9,0,0,0,4,0,9,0,0,0,0,0,0,0,0,0,0,0,76,148,943,940,506,0,838,777,1503,1541,897,307,29969,29973,29973,29974,29973,29974,29976,29976]} 1. d4 {[%emt 0:00:03]} Nf6 {[%emt 0:00:04]} 2. c4 {[%emt 0:00:01]} g6 {[%emt 0:00:00]} 3. Nc3 {[%emt 0:00:01]} d5 {[%emt 0:00:02]} 4. cxd5 {[%emt 0:00:00]} Nxd5 {[%emt 0:00:00]} 5. e4 {[%emt 0:00:01]} Nxc3 {[%emt 0:00:01]} 6. bxc3 {[%emt 0:00:00]} Bg7 {[%emt 0:00:00]} 7. Nf3 {[%emt 0:00:00]} c5 {[%emt 0:00:00]} 8. Bb5+ {[%emt 0:00:01]} Nc6 {[%emt 0:00:01]} 9. O-O {[%emt 0:00:01]} O-O {[%emt 0:00:01]} 10. Bxc6 {[%emt 0:00:00]} bxc6 {[%emt 0:00:00]} 11. Ba3 {[%emt 0:00:01]} (11. Qc2 cxd4 12. cxd4 Bg4 13. Ne5 Qxd4 14. Bb2 Qb6 15. Rab1 Bxe5 16. Bxe5 Qa5 17. Bc3 Qa6 18. Rfc1 Rfd8 19. Bb4 Rd7 20. a3 Rad8 21. f3 Be6 22. h4 h5 23. Kh2 {1-0 Bluebaum,M (2637)-Paravyan,D (2617) Titled Tuesday intern op 03rd May Late blitz 2022 (11)}) 11... cxd4 {[%emt 0:00:21]} 12. cxd4 {[%emt 0:00:00] D85: Exchange Grünfeld: Unusual White 7th moves and lines with 7 Nf3.} Bg4 {[%emt 0:00:06]} 13. Bc5 {[%emt 0:00:07]} Re8 {[%emt 0:00:46]} 14. Rc1 {[%emt 0:01:08] The position is equal.} Qd7 {[%emt 0:01:48]} 15. h3 {[%emt 0:02:57]} Bxf3 {[%emt 0:00:01]} 16. Qxf3 {[%emt 0:00:01]} Bxd4 {[%emt 0:00:00] [#]} 17. Rfd1 $146 {[%emt 0:01:56]} (17. Rcd1 $5 e5 $8 18. Rd2 $11) ({Predecessor:} 17. Bxd4 Qxd4 18. Rxc6 Qa4 19. Qc3 Qxe4 20. Rc7 Qa4 21. a3 Rad8 22. Rb1 Rd7 23. Rbb7 {0-1 Vio,M (1597)-Mueller,M (2177) LSS CP-2009-P-00042}) 17... e5 {[%emt 0:00:02]} 18. Bxd4 {[%emt 0:00:22]} exd4 {[%emt 0:00:01]} 19. Rc4 {[%emt 0:00:00]} Rad8 {[%emt 0:00:09]} 20. Qd3 {[%emt 0:00:01]} Qe6 {[%emt 0:03:13]} 21. Rxd4 {[%emt 0:00:03]} Rxd4 {[%emt 0:00:00]} 22. Qxd4 {[%emt 0:00:00]} Qxa2 $11 {[%emt 0:00:21][%mdl 4096] Endgame KQR-KQR} 23. Ra1 {[%emt 0:00:02]} Qe2 {[%emt 0:00:40]} 24. f3 {[%emt 0:01:03]} a5 {[%emt 0:00:13]} 25. Qa7 {[%emt 0:00:41] Dodges Ra8} Rd8 {[%emt 0:01:38] And now ...Qb2 would win.} 26. Rxa5 {[%emt 0:00:45]} Qb2 {[%emt 0:00:22] ...Rd2 is the strong threat.} 27. Qc5 {[%emt 0:02:03]} h6 {[%emt 0:01:52]} 28. Qe5 {[%emt 0:00:16]} Qb6+ {[%emt 0:00:56]} 29. Kh2 {[%emt 0:00:13]} Rc8 {[%emt 0:01:22]} 30. Rc5 {[%emt 0:00:40]} Qd8 {[%emt 0:00:00]} 31. Qc3 {[%emt 0:00:13]} Qd6+ {[%emt 0:00:06]} 32. e5 {[%emt 0:00:03]} Qe6 {[%emt 0:00:01]} 33. f4 {[%emt 0:00:08]} h5 {[%emt 0:00:03]} 34. Qc4 {[%emt 0:00:19]} Qxc4 {[%emt 0:00:09]} 35. Rxc4 {[%emt 0:00:01] KR-KR} c5 {[%emt 0:00:00]} 36. g4 {[%emt 0:00:05]} hxg4 {[%emt 0:00:29]} 37. hxg4 {[%emt 0:00:00]} Kf8 {[%emt 0:00:00]} 38. Kg3 {[%emt 0:00:05]} Ke7 {[%emt 0:00:03]} 39. f5 {[%emt 0:00:04]} g5 {[%emt 0:00:05] [#]} (39... f6 $11) 40. Kf3 $1 $16 {[%emt 0:00:24] aiming for Ke4.} Kd7 $2 {[%emt 0:00:01][%mdl 8192]} (40... Rd8 $16 41. Ke4 (41. Rxc5 Rd4 $16) 41... Rd1) 41. Ke4 $18 {[%emt 0:00:10]} Kc6 {[%emt 0:00:01]} 42. e6 $2 {[%emt 0:00:14]} (42. f6 $18 Ra8 43. Kf5) 42... f6 $2 {[%emt 0:01:17][%mdl 8192]} (42... fxe6 $11 43. fxe6 Kd6) 43. Ra4 {[%emt 0:00:18]} Kb5 {[%emt 0:00:01]} 44. Ra7 {[%emt 0:00:27] White threatens Kd5 and mate.} c4 {[%emt 0:00:06]} 45. e7 $2 {[%emt 0:00:26]} (45. Kd5) 45... c3 $2 {[%emt 0:00:43] [#]} (45... Kc6 $18 46. Kd4 c3 {[%mdl 64] Decoy} 47. Kxc3 (47. Ra3 Kd7 $11) 47... Kd6+ 48. Kd4 Rg8) 46. Rc7 $3 {[%emt 0:00:11][%mdl 576] Deflection, Promotion. White mates.} Rxc7 {[%emt 0:00:11]} 47. e8=Q+ {[%emt 0:00:01]} (47. e8=R {gets mated.} c2 48. Rb8+ Kc4 49. Kf3 c1=Q 50. Kg2 Qf4 51. Rh8 Re7 52. Rc8+ Kb3) 47... Kc5 {[%emt 0:00:05]} 48. Kd3 {[%emt 0:00:07]} Kb6 {[%emt 0:00:03]} 49. Qb8+ {[%emt 0:00:08] Weighted Error Value: White=0.29 (precise) /Black=0.27 (precise)} 1-0